[Event "Summer Chess Classic-A 2022"]
[Site "Saint Louis"]
[Date "2022.06.08"]
[Round "7.2"]
[White "Bjerre, Jonas Buhl"]
[Black "Gledura, Benjamin"]
[Result "1-0"]
[ECO "D40"]
[WhiteElo "2610"]
[BlackElo "2644"]
[Annotator "TA"]
[PlyCount "85"]
[EventDate "2022.05.31"]
[EventType "tourn"]
[EventCountry "USA"]
[SourceTitle "playchess.com"]
[Source "ChessBase"]
[SourceQuality "1"]
[TimeControl "40/5400+30:1800+30"]

{[%evp 18,85,7,17,23,8,31,31,33,33,44,32,21,29,47,14,16,9,8,0,-6,-31,0,0,10,22,22,0,360,348,345,352,456,459,452,439,537,525,716,698,647,647,909,749,887,777,855,911,745,780,864,809,780,731,1091,980,3843,2511,6415,6391,2364,5428,3146,3170,5314,4818,12835,12835,12841,12841]} 1. Nf3 {[%emt 0:00:09]} c5 {[%emt 0:00:20]} 2. c4 {[%emt 0:00:47]} Nc6 {[%emt 0:00:47]} 3. Nc3 {[%emt 0:00:18]} Nf6 {[%emt 0:00:35]} 4. e3 {[%emt 0:01:23]} e6 {[%emt 0:05:28]} 5. d4 {[%emt 0:00:53]} d5 {[%emt 0:00:07]} 6. a3 {[%emt 0:02:56]} dxc4 {[%emt 0:04:25]} 7. Bxc4 {[%emt 0:00:15]} a6 {[%emt 0:00:09]} 8. O-O {[%emt 0:02:39]} b5 {[%emt 0:01:51]} 9. Ba2 {[%emt 0:00:31]} Bb7 {[%emt 0:00:48]} 10. Qe2 {[%emt 0:02:11]} Be7 {[%emt 0:10:03] D40: Queen's Gambit Declined: Semi-Tarrasch with 5 e3.} 11. Rd1 {[%emt 0:05:20] Threatening dxc5.} Qc7 {[%emt 0:00:50]} 12. dxc5 {[%emt 0:09:26]} Bxc5 {[%emt 0:00:24] White is slightly better.} 13. b4 {[%emt 0:01:51]} Be7 {[%emt 0:04:21][%cal Oc6b4]} 14. Bb2 {[%emt 0:02:03]} O-O {[%emt 0:00:27]} 15. Rac1 {[%emt 0:01:29]} Rfd8 {[%emt 0:13:40] [#]} 16. Bb1 $146 {[%emt 0:07:01]} ({Predecessor:} 16. Nd4 Rac8 17. Nxe6 fxe6 18. Bxe6+ Kh8 19. Bxc8 Bxc8 20. Rxd8+ Bxd8 21. Qf3 {1-0 (56) Fojt,P (1527)-Szotkowski,D (1465) Kouty nad Desnou 2015}) 16... Rxd1+ {[%emt 0:03:14]} 17. Qxd1 {[%emt 0:01:59]} Rc8 {[%emt 0:08:03]} 18. Ng5 {[%emt 0:11:39]} Qd8 {[%emt 0:05:25]} 19. Qf3 {[%emt 0:12:35]} Qd2 {[%emt 0:08:11]} 20. Bxh7+ {[%emt 0:10:42]} Nxh7 {[%emt 0:01:05]} 21. Qxf7+ {[%emt 0:00:17]} Kh8 {[%emt 0:00:05]} 22. Nxe6 $40 {[%emt 0:01:04][%csl Ge6][%cal Rf7g7][%mdl 128] White attacks.} Bf6 {[%emt 0:00:57][%mdl 8192] Black is now going downhill.} 23. Qxb7 $18 {[%emt 0:02:34] Dancing on a razor blade.} Ne7 {[%emt 0:00:09] [#]} 24. Rf1 $1 {[%emt 0:04:44]} Qxb2 {[%emt 0:00:34]} (24... Re8 25. Ne4) 25. Nd5 {[%emt 0:00:20] White is clearly winning.} Rc1 {[%emt 0:14:27][%cal Ob2b1] ( -> ...Qb1!)} 26. Nxe7 {[%emt 0:01:17] Qa8+ would kill now.} Bxe7 {[%emt 0:02:48]} 27. Qxe7 {[%emt 0:01:17]} Rxf1+ {[%emt 0:04:18]} 28. Kxf1 {[%emt 0:00:10][%mdl 4096] Endgame KQN-KQN} Qc1+ {[%emt 0:00:19]} 29. Ke2 {[%emt 0:00:05][%csl Ge6][%cal Re7g7]} Qc4+ {[%emt 0:00:04]} 30. Kf3 {[%emt 0:02:25][%csl Ge6][%cal Re7g7]} Qxe6 {[%emt 0:00:18]} 31. Qxe6 {[%emt 0:00:23] Threatening mate with Qe8+.} Ng5+ {[%emt 0:00:02]} 32. Kf4 {[%emt 0:00:14]} Nxe6+ {[%emt 0:00:06] KN-KP} 33. Ke5 {[%emt 0:01:07]} Nd8 {[%emt 0:02:14]} 34. Kd6 {[%emt 0:04:40]} Nf7+ {[%emt 0:00:07]} 35. Kc7 {[%emt 0:02:47]} Ne5 {[%emt 0:00:22]} 36. Kb6 {[%emt 0:01:23]} Nc4+ {[%emt 0:00:09]} 37. Kxa6 {[%emt 0:00:06]} Nxa3 {[%emt 0:00:05]} 38. h4 {[%emt 0:02:23][%cal Bh2h4,Bh4h5][%mdl 32]} Kg8 {[%emt 0:00:18]} 39. e4 {[%emt 0:02:52]} Kf7 {[%emt 0:00:07]} 40. f4 {[%emt 0:01:47] aiming for g4.} Ke6 {[%emt 0:03:10]} 41. g4 {[%emt 0:03:09][%cal Bg2g4,Bg4g5][%mdl 32] Threatens to win with h5.} Kd7 {[%emt 0:02:06]} 42. h5 {[%emt 0:03:32]} Nc4 {[%emt 0:01:14]} 43. g5 {[%emt 0:01:52] Weighted Error Value: White=0.04 (flawless) /Black=0.54} 1-0

[Event "Summer Chess Classic-A 2022"]
[Site "Saint Louis"]
[Date "2022.06.08"]
[Round "7.3"]
[White "Hakobyan, Aram"]
[Black "Oparin, Grigoriy"]
[Result "1/2-1/2"]
[ECO "E20"]
[WhiteElo "2615"]
[BlackElo "2685"]
[Annotator "TA"]
[PlyCount "110"]
[EventDate "2022.05.31"]
[EventType "tourn"]
[EventCountry "USA"]
[SourceTitle "playchess.com"]
[Source "ChessBase"]
[SourceQuality "1"]
[TimeControl "40/5400+30:1800+30"]

{[%evp 22,110,38,29,16,34,25,28,33,31,45,39,47,35,66,69,56,60,57,52,95,4,4,4,6,9,5,0,0,3,3,7,48,0,0,0,46,39,105,0,0,0,123,123,123,123,123,0,123,123,145,123,123,129,137,137,145,145,146,146,146,146,146,146,147,147,147,154,154,154,154,0,154,154,161,161,168,169,169,169,169,169,169,169,177,177,177,177,183,183,192]} 1. d4 {[%emt 0:00:05]} Nf6 {[%emt 0:00:05]} 2. c4 {[%emt 0:00:12]} e6 {[%emt 0:00:05]} 3. Nc3 {[%emt 0:00:48]} Bb4 {[%emt 0:00:07]} 4. Nf3 {[%emt 0:01:23]} c5 {[%emt 0:01:16]} 5. g3 {[%emt 0:02:03]} cxd4 {[%emt 0:00:50]} 6. Nxd4 {[%emt 0:00:11]} O-O {[%emt 0:00:07]} 7. Bg2 {[%emt 0:00:57]} d5 {[%emt 0:00:28]} 8. cxd5 {[%emt 0:01:09]} Nxd5 {[%emt 0:00:06]} 9. Qb3 {[%emt 0:00:43]} Qa5 {[%emt 0:01:29]} 10. Bd2 {[%emt 0:01:17]} Nc6 {[%emt 0:00:48]} 11. Nxc6 {[%emt 0:00:22]} bxc6 {[%emt 0:00:05]} 12. O-O {[%emt 0:00:15]} Bxc3 {[%emt 0:01:05] E20: Nimzo-Indian: 4 g3 and 4 f3.} 13. bxc3 {[%emt 0:00:04]} Ba6 {[%emt 0:00:10]} 14. Rfd1 {[%emt 0:00:38]} Qc5 {[%emt 0:07:38] Against c4. White has an edge.} 15. e4 {[%emt 0:00:19]} Nb6 {[%emt 0:00:09]} 16. Be3 {[%emt 0:01:18]} Qh5 {[%emt 0:00:08]} 17. Bxb6 {[%emt 0:08:07]} Rab8 {[%emt 0:16:42][%mdl 64] Pin} 18. Qa3 {[%emt 0:07:25]} ({Inferior is} 18. g4 Qxg4 19. Rd7 axb6 $17) 18... Rxb6 {[%emt 0:00:14]} 19. Rd7 {[%emt 0:01:32]} Rfb8 {[%emt 0:05:04] Threatens to win with ...Rb1+.} 20. h4 {[%emt 0:12:33] [#]} g5 $146 {[%emt 0:17:19]} ({Predecessor:} 20... h6 21. Qe7 R8b7 22. Qe8+ Kh7 23. Rad1 Bc4 24. Rd8 Rb8 25. Qg8+ Kg6 26. R1d7 {1-0 (26) Parligras,M (2586)-Dolana,A (2346) Olanesti 2016}) 21. Qa5 {[%emt 0:32:43] White is more active.} ({Reject} 21. Rxa7 $6 gxh4 22. Rxa6 Rxa6 23. Qxa6 hxg3 24. fxg3 Qc5+ 25. Kh2 Qh5+ 26. Kg1 Qc5+ 27. Kh2 Qh5+ 28. Kg1 $11) (21. Qe7 $16) 21... Be2 $11 {[%emt 0:10:56] Prevents Rad1.} 22. Qxg5+ {[%emt 0:01:25]} Qxg5 {[%emt 0:00:04]} 23. hxg5 {[%emt 0:00:11]} Rb1+ {[%emt 0:00:05]} 24. Rxb1 {[%emt 0:00:09]} Rxb1+ {[%emt 0:00:04][%mdl 4096] Endgame KRB-KRB} 25. Kh2 {[%emt 0:00:05]} Rb2 {[%emt 0:00:05]} 26. Rxa7 {[%emt 0:02:27]} Bb5 {[%emt 0:05:09]} 27. Kg1 {[%emt 0:00:31]} Rb1+ $1 {[%emt 0:00:05]} 28. Kh2 {[%emt 0:00:05]} Rb2 $1 {[%emt 0:00:04]} 29. a4 {[%emt 0:01:21][%cal Ba2a4,Ba4a5,Ba5a6,Ba6a7][%mdl 32]} Bc4 {[%emt 0:00:44]} ({Better is} 29... Bd3 $1 $14) 30. Kg1 {[%emt 0:00:19]} Rb1+ $1 {[%emt 0:00:06]} 31. Kh2 {[%emt 0:00:03]} Rb2 {[%emt 0:00:05]} 32. a5 {[%emt 0:17:41]} Rxf2 {[%emt 0:00:32]} 33. a6 {[%emt 0:00:19]} Ra2 {[%emt 0:02:01] Hoping for ...Bf1.} 34. Ra8+ {[%emt 0:00:07]} Kg7 {[%emt 0:00:04] And now ...Bf1 would win.} 35. a7 {[%emt 0:00:28]} e5 {[%emt 0:01:09]} 36. Kg1 {[%emt 0:00:16]} Be6 {[%emt 0:00:33] Against Bh3} 37. Bf1 {[%emt 0:00:30]} Ra1 {[%emt 0:01:20]} 38. Kf2 {[%emt 0:00:20]} Ra2+ {[%emt 0:00:13]} 39. Ke3 {[%emt 0:00:47]} Ra3 {[%emt 0:00:21]} 40. Kd2 {[%emt 0:01:14]} Ra2+ {[%emt 0:00:41]} 41. Kc1 {[%emt 0:31:08]} Ra1+ {[%emt 0:30:15]} 42. Kb2 {[%emt 0:00:21]} Ra2+ {[%emt 0:00:04]} 43. Kb1 {[%emt 0:00:37] Black must now prevent c4.} Ra3 {[%emt 0:00:21]} 44. Be2 {[%emt 0:01:32]} Ra5 {[%emt 0:00:41]} 45. Bd1 {[%emt 0:03:34]} Ra6 {[%emt 0:00:32]} 46. Be2 {[%emt 0:02:24]} Ra5 {[%emt 0:00:03]} 47. Kc2 {[%emt 0:00:44] White is clearly better.} Ra2+ {[%emt 0:00:07]} 48. Kd3 {[%emt 0:00:18]} Ra3 {[%emt 0:00:12]} 49. Bd1 {[%emt 0:00:00]} Ra1 {[%emt 0:00:00]} 50. Bc2 {[%emt 0:00:00]} Ra3 {[%emt 0:00:00]} 51. Kd2 {[%emt 0:00:00]} Ra2 {[%emt 0:00:00]} 52. Kc1 {[%emt 0:00:00]} Ra1+ {[%emt 0:00:00]} 53. Kb2 {[%emt 0:00:00]} Ra2+ {[%emt 0:00:00] [#]} 54. Kb1 $1 {[%emt 0:00:00]} Ra5 {[%emt 0:00:00] [#]} 55. Bd3 $1 {[%emt 0:00:00]} Ra3 {[%emt 0:00:00] Weighted Error Value: White=0.12 (very precise) /Black=0.05 (flawless)} 1/2-1/2

[Event "Summer Chess Classic-A 2022"]
[Site "Saint Louis"]
[Date "2022.06.08"]
[Round "7.4"]
[White "Mishra, Abhimanyu"]
[Black "Yu, Yangyi"]
[Result "1/2-1/2"]
[ECO "B40"]
[WhiteElo "2535"]
[BlackElo "2710"]
[Annotator "TA"]
[PlyCount "80"]
[EventDate "2022.05.31"]
[EventType "tourn"]
[EventCountry "USA"]
[SourceTitle "playchess.com"]
[Source "ChessBase"]
[SourceQuality "1"]
[TimeControl "40/5400+30:1800+30"]

{[%evp 9,80,13,12,22,11,20,28,5,18,0,0,0,1,0,0,-21,-16,-15,-8,-8,0,0,0,0,-2,-16,-18,-11,10,9,7,4,9,11,9,0,8,8,8,8,8,8,10,0,0,0,0,0,0,0,0,0,0,0,0,0,0,0,0,0,0,0,0,0,0,0,0,0,0,0,0,0,0]} 1. e4 {[%emt 0:00:02]} c5 {[%emt 0:00:25]} 2. Nf3 {[%emt 0:00:09]} e6 {[%emt 0:00:14]} 3. g3 {[%emt 0:00:29]} d5 {[%emt 0:02:26]} 4. exd5 {[%emt 0:01:34]} exd5 {[%emt 0:00:23]} 5. d4 {[%emt 0:01:07]} cxd4 {[%emt 0:00:28]} 6. Nxd4 {[%emt 0:07:37] B40: Sicilian: 2...e6, Unusual lines.} Nc6 {[%emt 0:01:23]} 7. Bg2 {[%emt 0:01:23] Active counter play!} Bc5 {[%emt 0:00:18]} 8. c3 {[%emt 0:08:54] White has an edge.} Nf6 {[%emt 0:02:22] The position is equal.} 9. O-O {[%emt 0:02:05]} O-O {[%emt 0:00:11]} 10. Be3 {[%emt 0:02:13] [#] Nxc6 is the strong threat.} Bb6 {[%emt 0:04:52] [#]} 11. h3 $146 {[%emt 0:09:30]} ({Predecessor:} 11. Na3 Re8 12. Nac2 Bg4 13. f3 Bh5 14. Bf4 Bg6 15. Kh1 Nh5 16. Bd2 Qf6 17. Be1 {1-0 (67) Shkapenko,P (2406)-Szelag,M (2469) Gorzow Wielkopolski 2014}) 11... Re8 {[%emt 0:03:07]} 12. Nd2 {[%emt 0:06:19][%cal Bb1d2,Bd2f3,Bf3e5][%mdl 32]} Nxd4 {[%emt 0:03:55]} 13. cxd4 {[%emt 0:02:50]} Bf5 {[%emt 0:01:06]} 14. Nf3 {[%emt 0:04:34]} Be4 {[%emt 0:04:05]} 15. Ne5 {[%emt 0:06:24]} Nd7 {[%emt 0:07:25][%cal Bf6d7,Bd7f8,Bf8e6][%mdl 32]} 16. Nd3 {[%emt 0:04:52]} Nf8 {[%emt 0:03:46]} 17. Nc5 {[%emt 0:06:11]} Bxg2 {[%emt 0:02:51]} 18. Kxg2 {[%emt 0:00:02]} Ne6 {[%emt 0:04:38]} 19. b4 {[%emt 0:02:49]} Bxc5 {[%emt 0:04:09]} 20. bxc5 {[%emt 0:00:14]} b6 {[%emt 0:00:51]} 21. cxb6 {[%emt 0:01:49]} axb6 {[%emt 0:02:39]} 22. a4 {[%emt 0:01:50]} Qd7 {[%emt 0:03:24]} 23. Qb3 {[%emt 0:04:12]} h6 {[%emt 0:00:19]} 24. Rfb1 {[%emt 0:01:59]} Ra6 {[%emt 0:04:12]} 25. Qb5 {[%emt 0:06:01]} (25. Qd3 {keeps more tension.} Rxa4 26. Rxa4 Qxa4 27. Rxb6 Rd8 28. Rb7) 25... Qxb5 {[%emt 0:00:18]} 26. axb5 {[%emt 0:00:25]} Rxa1 {[%emt 0:01:28]} 27. Rxa1 $11 {[%emt 0:00:01][%mdl 4096] Endgame KRB-KRN} Nc7 {[%emt 0:00:24]} 28. Rc1 {[%emt 0:01:14]} Nxb5 {[%emt 0:00:11]} 29. Rb1 {[%emt 0:00:02]} Nd6 {[%emt 0:00:28]} 30. Rxb6 {[%emt 0:00:15]} Nc4 {[%emt 0:03:43][%csl LRb6,LRe3]} 31. Rb5 {[%emt 0:02:20]} Nxe3+ {[%emt 0:00:27]} 32. fxe3 {[%emt 0:00:01]} Rxe3 {[%emt 0:00:11]} 33. Rxd5 {[%emt 0:00:06] KR-KR} Kf8 {[%emt 0:00:48]} 34. Ra5 {[%emt 0:01:49]} g6 {[%emt 0:03:24]} 35. d5 {[%emt 0:05:03]} Rd3 {[%emt 0:00:41]} 36. Ra8+ {[%emt 0:00:32]} Ke7 {[%emt 0:00:33]} 37. Ra7+ {[%emt 0:00:06]} Ke8 {[%emt 0:00:13]} 38. Ra8+ {[%emt 0:00:06]} Ke7 {[%emt 0:00:04]} 39. Ra7+ {[%emt 0:00:07]} Ke8 {[%emt 0:00:04]} 40. Ra8+ {[%emt 0:00:08]} Ke7 {[%emt 0:00:05] A balanced but interesting game.  Weighted Error Value: White=0.03 (flawless) /Black=0.02 (flawless)} 1/2-1/2

[Event "Summer Chess Classic-A 2022"]
[Site "Saint Louis"]
[Date "2022.06.09"]
[Round "8.1"]
[White "Oparin, Grigoriy"]
[Black "Bjerre, Jonas Buhl"]
[Result "1-0"]
[ECO "E24"]
[WhiteElo "2685"]
[BlackElo "2610"]
[Annotator "TA"]
[PlyCount "89"]
[EventDate "2022.05.31"]
[EventType "tourn"]
[EventCountry "USA"]
[SourceTitle "playchess.com"]
[Source "ChessBase"]
[SourceQuality "1"]
[TimeControl "40/5400+30:1800+30"]

{[%evp 12,89,-37,-27,6,7,8,0,0,0,1,0,0,0,22,19,20,13,28,30,80,95,115,71,68,71,69,83,66,68,125,109,120,118,121,120,281,143,444,451,449,440,409,439,593,585,507,271,271,265,258,255,237,237,236,227,241,222,774,526,837,937,911,861,822,349,690,806,12695,12842,5704,4736,29968,29971,29972,29973,29975,29976,29976,29977]} 1. d4 {[%emt 0:00:03]} Nf6 {[%emt 0:00:43]} 2. c4 {[%emt 0:00:05]} e6 {[%emt 0:00:08]} 3. Nc3 {[%emt 0:00:04]} Bb4 {[%emt 0:00:20]} 4. a3 {[%emt 0:00:21]} Bxc3+ {[%emt 0:00:40]} 5. bxc3 {[%emt 0:00:05]} c5 {[%emt 0:01:22]} 6. f3 {[%emt 0:00:27]} Nc6 {[%emt 0:01:25] is recently more successful than 6...d5.} 7. e4 {[%emt 0:00:52]} cxd4 {[%emt 0:01:08] E24: Nimzo-Indian: Sämisch: Unusual Black 5th moves and 5...c5 sidelines.} 8. cxd4 {[%emt 0:00:13] [#]} d5 $146 {[%emt 0:00:07]} ({Predecessor:} 8... Nxe4 9. fxe4 Qh4+ 10. Ke2 Qxe4+ 11. Be3 e5 12. Nf3 exd4 13. Nxd4 d5 14. cxd5 Bg4+ 15. Nf3 {1-0 (30) Zulfic,F (2160)-Silva,K (1873) Gold Coast 2019}) 9. cxd5 {[%emt 0:05:47]} exd5 {[%emt 0:00:06] The position is equal.} 10. e5 {[%emt 0:00:17]} Ng8 {[%emt 0:00:22]} 11. Be3 {[%emt 0:07:11]} Nge7 {[%emt 0:02:18]} 12. Bd3 {[%emt 0:01:15]} Qb6 {[%emt 0:11:18]} 13. Rb1 {[%emt 0:11:07]} Qa5+ {[%emt 0:02:42]} 14. Kf2 {[%emt 0:00:16]} Qxa3 {[%emt 0:07:33]} 15. Ne2 $36 {[%emt 0:02:09][%mdl 2048] White fights for an advantage.} Bf5 {[%emt 0:07:33]} (15... Qa5 $11) 16. Rb3 $16 {[%emt 0:02:39]} Qa2 {[%emt 0:03:22]} 17. Rxb7 {[%emt 0:01:09]} O-O {[%emt 0:02:49]} 18. Bg5 {[%emt 0:10:45][%cal Be3g5,Bg5f4,Bf4d6][%mdl 32]} f6 {[%emt 0:06:04]} 19. exf6 {[%emt 0:00:27]} gxf6 {[%emt 0:00:34]} 20. Bf4 {[%emt 0:05:45] A strong pair of Bishops.} Rfe8 {[%emt 0:05:24]} ({Black should try} 20... Rf7 $14) 21. Re1 $1 {[%emt 0:01:29]} Bxd3 {[%emt 0:11:12]} 22. Qxd3 {[%emt 0:00:06]} a5 {[%emt 0:04:40]} 23. Bd6 {[%emt 0:09:06] Inhibits Nb4. White is more active.} Ng6 $2 {[%emt 0:03:00] [#]} (23... Qc4 $16 24. Qxc4 dxc4) 24. h4 {[%emt 0:02:42]} (24. Kg3 $1 $18) 24... Re6 $2 {[%emt 0:04:16][%mdl 8192] A mistake that costs the game.} (24... Qc4 $16 25. Qd2 (25. Qxc4 dxc4 26. h5 Nh4 $16) 25... Qa6) 25. h5 $18 {[%emt 0:02:00][%cal Bh4h5,Bh5g6,Bg6h7][%mdl 32]} Nge7 {[%emt 0:00:18]} 26. Bxe7 {[%emt 0:04:03]} Nxe7 {[%emt 0:01:43]} 27. Rc1 {[%emt 0:04:59] And now Rc2 would win.} Re8 {[%emt 0:01:58]} 28. Kf1 {[%emt 0:03:53] Threatens to win with Nf4.} Ng6 {[%emt 0:05:14][%cal Re6e2] Inhibits Nf4.} 29. hxg6 {[%emt 0:03:47]} Qxe2+ {[%emt 0:01:02]} 30. Qxe2 {[%emt 0:00:05] Really sharp!} Rxe2 {[%emt 0:00:03]} 31. gxh7+ {[%emt 0:03:39][%mdl 4096] Endgame KRR-KRR} ({Don't play} 31. Rxh7 $6 f5 32. Ra7 Rd2 $16) 31... Kh8 {[%emt 0:00:05]} 32. Ra1 {[%emt 0:00:54]} Rd2 {[%emt 0:01:31]} 33. Rxa5 {[%emt 0:00:27]} Rxd4 {[%emt 0:00:06] [#]} 34. Rf7 {[%emt 0:00:11] Prevents Rf8.} Rd1+ $2 {[%emt 0:01:52]} (34... f5 {is tougher.} 35. Rxf5 Rd1+ 36. Kf2 Rd2+ 37. Kg3 Ree2) 35. Kf2 {[%emt 0:00:05]} d4 {[%emt 0:00:31]} 36. Rd5 {[%emt 0:01:32] Against Rd8} d3 {[%emt 0:01:01]} 37. Rdd7 {[%emt 0:04:37]} d2 {[%emt 0:01:19]} 38. Kg3 {[%emt 0:01:28]} (38. Rxf6 $142 Rh1 39. Rfd6) 38... Ra8 $2 {[%emt 0:05:40]} (38... Rh1) 39. Rxf6 {[%emt 0:00:29]} Re8 {[%emt 0:00:19]} 40. Rg6 {[%emt 0:00:36] White wants to mate with f4.} Rf8 {[%emt 0:00:52]} 41. Kg4 {[%emt 0:31:02] f4 would kill now.} Ra8 {[%emt 0:30:52]} 42. f4 {[%emt 0:00:27][%cal Bf3f4,Bf4f5][%mdl 32] White mates.} Rf8 {[%emt 0:00:28]} 43. Kg5 {[%emt 0:00:26]} Ra8 {[%emt 0:00:31]} 44. f5 {[%emt 0:00:27]} Rf8 {[%emt 0:00:23]} 45. g4 {[%emt 0:01:18] Weighted Error Value: White=0.26 (precise) /Black=0.59} 1-0

[Event "Summer Chess Classic-A 2022"]
[Site "Saint Louis"]
[Date "2022.06.09"]
[Round "8.2"]
[White "Theodorou, Nikolas"]
[Black "Sevian, Samuel"]
[Result "1-0"]
[ECO "E04"]
[WhiteElo "2567"]
[BlackElo "2703"]
[Annotator "TA"]
[PlyCount "113"]
[EventDate "2022.05.31"]
[EventType "tourn"]
[EventCountry "USA"]
[SourceTitle "playchess.com"]
[Source "ChessBase"]
[SourceQuality "1"]
[TimeControl "40/5400+30:1800+30"]

{[%evp 11,113,13,40,0,14,14,41,50,73,43,48,65,58,58,57,64,87,83,75,66,88,72,77,66,88,55,64,65,78,64,89,66,100,109,102,110,99,82,132,99,99,94,100,103,133,147,181,184,193,181,206,181,185,179,182,168,176,117,193,204,188,193,202,202,182,187,175,172,181,187,196,152,209,190,220,229,252,260,411,413,450,430,424,437,582,527,570,552,555,552,550,526,510,497,820,768,1336,1215,1175,1131,29985,29986,29987,29988]} 1. d4 {[%emt 0:00:03] Sumets,A} Nf6 {[%emt 0:00:53]} 2. c4 {[%emt 0:00:13]} e6 {[%emt 0:00:08]} 3. Nf3 {[%emt 0:00:08]} d5 {[%emt 0:00:18][%cal Bd7d5,Bd5c4][%mdl 32]} 4. g3 {[%emt 0:00:10]} dxc4 {[%emt 0:00:20]} 5. Bg2 {[%emt 0:00:41]} a6 {[%emt 0:00:12]} 6. O-O {[%emt 0:00:36]} Nc6 {[%emt 0:00:39]} (6... b5 {feels hotter.} 7. Ne5 Nd5 8. a4 Bb7) 7. Be3 {[%emt 0:00:20] E04: Open Catalan: 5 Nf3.} Bd7 {[%emt 0:18:43]} 8. Qc1 {[%emt 0:00:14] [#]} Bd6 $146 {[%emt 0:04:24]} ({Predecessor:} 8... b5 9. b3 cxb3 10. axb3 Bd6 11. Ne1 Nd5 12. Nc3 Ncb4 13. Nxd5 exd5 14. Bd2 c6 15. Bxb4 Bxb4 {0-1 (44) Bluebaum,M (2634)-Naiditsch,A (2702) Karlsruhe/Baden-Baden 2017 CBM 178 [Sumets,A]}) 9. Qxc4 {[%emt 0:09:57] White is slightly better.} Ne7 {[%emt 0:24:16]} 10. Ne5 {[%emt 0:18:21]} Bb5 {[%emt 0:01:09]} 11. Qc2 {[%emt 0:00:13]} Nfd5 {[%emt 0:01:42]} 12. a4 {[%emt 0:02:16]} Bc6 {[%emt 0:04:27]} 13. Bd2 {[%emt 0:28:07]} a5 {[%emt 0:15:54]} 14. Nxc6 {[%emt 0:03:06]} Nxc6 {[%emt 0:00:06]} 15. e3 {[%emt 0:00:28]} Be7 {[%emt 0:02:56]} 16. Na3 {[%emt 0:03:20]} O-O {[%emt 0:00:30]} 17. Nc4 {[%emt 0:00:48]} Bb4 {[%emt 0:06:20]} 18. Bc1 {[%emt 0:01:02]} Qd7 {[%emt 0:01:30]} 19. b3 {[%emt 0:02:47]} Rfd8 {[%emt 0:00:44]} 20. Bb2 {[%emt 0:00:36]} Be7 {[%emt 0:00:41]} 21. Rad1 {[%emt 0:01:00]} Qe8 {[%emt 0:00:20]} 22. e4 {[%emt 0:03:13]} Ncb4 {[%emt 0:02:21]} 23. Qe2 {[%emt 0:05:23]} Nb6 {[%emt 0:00:38]} 24. Ne3 {[%emt 0:02:55]} Rac8 {[%emt 0:01:22]} ({Better is} 24... Bf8) 25. d5 {[%emt 0:01:26]} Nd7 {[%emt 0:03:08]} 26. dxe6 {[%emt 0:06:20] White is more active.} fxe6 {[%emt 0:00:06]} 27. Bh3 {[%emt 0:00:03] This bishop pair is nice.} Nf8 {[%emt 0:04:05]} 28. Qc4 {[%emt 0:02:10]} Qf7 {[%emt 0:02:23] Inhibits Nf5.} 29. Rxd8 {[%emt 0:02:21]} Bxd8 {[%emt 0:00:20]} 30. Ng4 {[%emt 0:00:27]} Nc6 {[%emt 0:01:03]} 31. Qb5 {[%emt 0:00:54]} Rb8 {[%emt 0:02:30]} 32. f4 {[%emt 0:02:05][%cal Bf2f4,Bf4f5][%mdl 32] Hoping for f5.} h5 {[%emt 0:01:17]} 33. Ne3 {[%emt 0:00:24][%cal Bg4e3,Be3c4,Bc4a5][%mdl 32]} Be7 {[%emt 0:00:05]} 34. e5 {[%emt 0:02:23]} (34. Kh1 $18) 34... Rd8 {[%emt 0:00:59] [#]} (34... h4 $16) 35. f5 $1 $18 {[%emt 0:00:59]} Bg5 {[%emt 0:00:39] [#]} 36. Nc4 {[%emt 0:00:30]} exf5 {[%emt 0:00:38]} 37. Bxf5 {[%emt 0:01:05][%cal Of5h7]} Qd5 {[%emt 0:00:16]} 38. Qxd5+ {[%emt 0:01:22]} ({Stronger than} 38. Qxb7 Rb8 39. Qxc7 Rxb3 $11) 38... Rxd5 {[%emt 0:00:02]} 39. Be4 {[%emt 0:00:29]} Rd8 {[%emt 0:00:46]} 40. Bxc6 {[%emt 0:00:40]} bxc6 {[%emt 0:00:04]} 41. Nxa5 {[%emt 0:30:10]} c5 {[%emt 0:08:54]} (41... Be3+ $16 {was necessary.} 42. Kh1 Rd3 43. Nxc6 Rxb3) 42. Bc1 {[%emt 0:00:00]} Bxc1 {[%emt 0:01:50]} 43. Rxc1 {[%emt 0:00:00][%mdl 4096] Endgame KRN-KRN} Ne6 {[%emt 0:02:35]} 44. Nb7 {[%emt 0:00:00][%csl LRc5,LRd8]} Rd2 {[%emt 0:12:59]} (44... Rb8 $142) 45. Nxc5 {[%emt 0:00:00]} Nd4 {[%emt 0:00:41] Threatens to win with ...Ne2+.} 46. Rf1 {[%emt 0:00:00]} Re2 {[%emt 0:00:24]} 47. Rf4 {[%emt 0:00:00]} Re1+ {[%emt 0:02:16]} 48. Kf2 {[%emt 0:00:00]} Re2+ {[%emt 0:00:10]} 49. Kf1 {[%emt 0:00:00]} Rxe5 {[%emt 0:00:33]} 50. Rxd4 {[%emt 0:00:00]} Rxc5 {[%emt 0:00:05] KR-KR} 51. Rc4 {[%emt 0:00:00] Prevents Rc3.} Rf5+ {[%emt 0:00:16]} 52. Kg2 {[%emt 0:00:52]} c5 {[%emt 0:00:36]} (52... Rf8 $142 53. b4 Ra8) 53. a5 {[%emt 0:00:19][%cal Ba4a5,Ba5a6,Ba6a7][%mdl 32] Black must now prevent a6.} Rd5 {[%emt 0:00:07]} 54. a6 {[%emt 0:00:48]} Rd2+ {[%emt 0:00:11]} 55. Kf1 {[%emt 0:00:41]} Rxh2 {[%emt 0:00:35]} 56. a7 {[%emt 0:00:30]} Ra2 {[%emt 0:00:06]} 57. Ra4 {[%emt 0:00:05] Weighted Error Value: White=0.08 (flawless) /Black=0.38} 1-0